[Event "Titled Tuesday Blitz August 1 Late 2023"]
[White "Stanisz, Patryk"]
[Black "Winkels, Marcel"]
[WhiteFideId "1123106"]
[BlackFideId "1003887"]
[WhiteElo "2289"]
[BlackElo "2080"]
[Result "1-0"]
[Round "8"]
[TimeControl "180+1"]
[Date "2023.08.01"]
[WhiteClock "0:01:35"]
[BlackClock "0:00:00"]
[Board "129"]

1. d4 {[%clk 0:03:00]}  Nf6 {[%clk 0:02:58]} 2. c4 {[%clk 0:03:01]}  g6 {[%clk 0:02:59]} 3. Nc3 {[%clk 0:03:01]}  d5 {[%clk 0:02:59]} 4. Nf3 {[%clk 0:03:01]}  Bg7 {[%clk 0:02:59]} 5. Qb3 {[%clk 0:03:01]}  dxc4 {[%clk 0:02:57]} 6. Qxc4 {[%clk 0:03:02]}  O-O {[%clk 0:02:57]} 7. Bf4 {[%clk 0:03:02]}  a6 {[%clk 0:02:55]} 8. e3 {[%clk 0:02:59]}  Nc6 {[%clk 0:02:52]} 9. Be2 {[%clk 0:02:58]}  Bd7 {[%clk 0:02:50]} 10. d5 {[%clk 0:02:56]}  b5 {[%clk 0:02:40]} 11. Qc5 {[%clk 0:02:55]}  Na5 {[%clk 0:02:39]} 12. Qxc7 {[%clk 0:02:54]}  Qxc7 {[%clk 0:02:38]} 13. Bxc7 {[%clk 0:02:54]}  Nc4 {[%clk 0:02:37]} 14. Bxc4 {[%clk 0:02:54]}  bxc4 {[%clk 0:02:29]} 15. Be5 {[%clk 0:02:46]}  Ne8 {[%clk 0:02:21]} 16. Bxg7 {[%clk 0:02:46]}  Kxg7 {[%clk 0:02:21]} 17. Ne5 {[%clk 0:02:44]}  Bf5 {[%clk 0:02:15]} 18. e4 {[%clk 0:02:43]}  Bc8 {[%clk 0:02:12]} 19. Nxc4 {[%clk 0:02:43]}  a5 {[%clk 0:02:07]} 20. Nb6 {[%clk 0:02:40]}  Rb8 {[%clk 0:02:06]} 21. Nxc8 {[%clk 0:02:39]}  Rxc8 {[%clk 0:02:06]} 22. Ke2 {[%clk 0:02:37]}  Nd6 {[%clk 0:02:06]} 23. f3 {[%clk 0:02:35]}  Nc4 {[%clk 0:02:05]} 24. Na4 {[%clk 0:02:35]}  Rb8 {[%clk 0:02:03]} 25. b3 {[%clk 0:02:34]}  Nd6 {[%clk 0:01:56]} 26. Rac1 {[%clk 0:02:32]}  Rfc8 {[%clk 0:01:55]} 27. Kd2 {[%clk 0:02:28]}  Kf6 {[%clk 0:01:49]} 28. Nc5 {[%clk 0:02:23]}  Ke5 {[%clk 0:01:46]} 29. Nd7+ {[%clk 0:02:23]}  Kd4 {[%clk 0:01:45]} 30. Nxb8 {[%clk 0:02:19]}  Rxb8 {[%clk 0:01:45]} 31. Rhd1 {[%clk 0:02:17]}  f5 {[%clk 0:01:43]} 32. Ke2+ {[%clk 0:02:13]}  Ke5 {[%clk 0:01:42]} 33. exf5 {[%clk 0:02:12]}  Nxf5 {[%clk 0:01:41]} 34. Rc5 {[%clk 0:02:04]}  a4 {[%clk 0:01:40]} 35. d6+ {[%clk 0:01:49]}  Kf6 {[%clk 0:01:37]} 36. d7 {[%clk 0:01:46]}  Nd6 {[%clk 0:01:36]} 37. Rxd6+ {[%clk 0:01:45]}  exd6 {[%clk 0:01:33]} 38. Rc8 {[%clk 0:01:45]}  axb3 {[%clk 0:00:16]} 39. Rxb8 {[%clk 0:01:42]}  bxa2 {[%clk 0:00:15]} 40. d8=Q+ {[%clk 0:01:41]}  Kf5 {[%clk 0:00:14]} 41. Rb5+ {[%clk 0:01:40]}  Ke6 {[%clk 0:00:13]} 42. Qe8+ {[%clk 0:01:38]}  Kf6 {[%clk 0:00:00]} 43. Ra5 {[%clk 0:01:35]} 1-0


[Site "https://www.chess.com"]

[Event "Titled Tuesday Blitz August 1 Late 2023"]
[White "Arias Igual, Alejandro"]
[Black "Semenova, Alina"]
[WhiteFideId "2254905"]
[BlackFideId "24113875"]
[WhiteElo "2243"]
[BlackElo "2079"]
[Result "1-0"]
[Round "8"]
[TimeControl "180+1"]
[Date "2023.08.01"]
[WhiteClock "0:02:08"]
[BlackClock "0:02:51"]
[Board "130"]

1. Nf3 {[%clk 0:03:00]}  Nf6 {[%clk 0:02:59]} 2. g3 {[%clk 0:03:00]}  d6 {[%clk 0:03:00]} 3. Bg2 {[%clk 0:03:00]}  g6 {[%clk 0:03:00]} 4. O-O {[%clk 0:03:00]}  Bg7 {[%clk 0:03:01]} 5. d3 {[%clk 0:02:59]}  O-O {[%clk 0:03:02]} 6. e4 {[%clk 0:02:58]}  c5 {[%clk 0:03:03]} 7. c3 {[%clk 0:02:55]}  Nc6 {[%clk 0:03:04]} 8. h3 {[%clk 0:02:53]}  b5 {[%clk 0:03:04]} 9. d4 {[%clk 0:02:41]}  Qb6 {[%clk 0:02:59]} 10. e5 {[%clk 0:02:37]}  Ne8 {[%clk 0:02:54]} 11. Be3 {[%clk 0:02:22]}  Bb7 {[%clk 0:02:53]} 12. exd6 {[%clk 0:02:12]}  Nxd6 {[%clk 0:02:50]} 13. dxc5 {[%clk 0:02:11]}  Qc7 {[%clk 0:02:51]} 14. cxd6 {[%clk 0:02:10]}  exd6 {[%clk 0:02:51]} 15. Nbd2 {[%clk 0:02:08]} 1-0


[Site "https://www.chess.com"]

[Event "Titled Tuesday Blitz August 1 Late 2023"]
[White "Vargas, Mauricio"]
[Black "Celestino, Rafael Teixeira"]
[WhiteFideId "4404572"]
[BlackFideId "2108925"]
[WhiteElo "1888"]
[BlackElo "2223"]
[Result "0-1"]
[Round "8"]
[TimeControl "180+1"]
[Date "2023.08.01"]
[WhiteClock "0:00:00"]
[BlackClock "0:01:26"]
[Board "131"]

1. e4 {[%clk 0:02:35]}  e5 {[%clk 0:02:48]} 2. Nf3 {[%clk 0:02:35]}  Nc6 {[%clk 0:02:48]} 3. d4 {[%clk 0:02:34]}  exd4 {[%clk 0:02:48]} 4. Bc4 {[%clk 0:02:34]}  Bc5 {[%clk 0:02:49]} 5. c3 {[%clk 0:02:34]}  dxc3 {[%clk 0:02:48]} 6. Bxf7+ {[%clk 0:02:31]}  Kf8 {[%clk 0:02:49]} 7. Bxg8 {[%clk 0:02:21]}  Rxg8 {[%clk 0:02:40]} 8. Ng5 {[%clk 0:02:21]}  cxb2 {[%clk 0:02:35]} 9. Bxb2 {[%clk 0:01:56]}  Qxg5 {[%clk 0:02:34]} 10. Qf3+ {[%clk 0:01:49]}  Ke8 {[%clk 0:02:26]} 11. O-O {[%clk 0:01:47]}  d6 {[%clk 0:02:25]} 12. Nc3 {[%clk 0:01:45]}  Nd4 {[%clk 0:02:24]} 13. Qd3 {[%clk 0:01:31]}  Bg4 {[%clk 0:02:13]} 14. Kh1 {[%clk 0:01:30]}  Rf8 {[%clk 0:02:09]} 15. f3 {[%clk 0:01:29]}  Bd7 {[%clk 0:02:05]} 16. Nd5 {[%clk 0:01:18]}  Kd8 {[%clk 0:02:01]} 17. Bxd4 {[%clk 0:01:14]}  c6 {[%clk 0:02:01]} 18. Bxc5 {[%clk 0:01:09]}  dxc5 {[%clk 0:01:54]} 19. Ne3 {[%clk 0:00:59]}  Kc7 {[%clk 0:01:47]} 20. Rfd1 {[%clk 0:00:53]}  Rad8 {[%clk 0:01:48]} 21. Qd6+ {[%clk 0:00:39]}  Kc8 {[%clk 0:01:47]} 22. Nc4 {[%clk 0:00:25]}  Bh3 {[%clk 0:01:29]} 23. Qg3 {[%clk 0:00:17]}  Rxd1+ {[%clk 0:01:28]} 24. Rxd1 {[%clk 0:00:16]}  Qxg3 {[%clk 0:01:29]} 25. hxg3 {[%clk 0:00:15]}  Be6 {[%clk 0:01:30]} 26. Ne3 {[%clk 0:00:13]}  Bxa2 {[%clk 0:01:25]} 27. Ra1 {[%clk 0:00:11]}  Bb3 {[%clk 0:01:26]} 28. Rxa7 {[%clk 0:00:10]}  Kc7 {[%clk 0:01:27]} 29. g4 {[%clk 0:00:10]}  c4 {[%clk 0:01:25]} 30. Ra3 {[%clk 0:00:06]}  b5 {[%clk 0:01:25]} 31. Kg1 {[%clk 0:00:05]}  b4 {[%clk 0:01:25]} 32. Ra7+ {[%clk 0:00:03]}  Kb6 {[%clk 0:01:26]} 33. Rxg7 {[%clk 0:00:00]}  c3 {[%clk 0:01:26]} 0-1


[Site "https://www.chess.com"]

[Event "Titled Tuesday Blitz August 1 Late 2023"]
[White "Zhigalko, Sergei"]
[Black "Firouzja, Alireza"]
[WhiteFideId "13502956"]
[BlackFideId "12573981"]
[WhiteElo "2926"]
[BlackElo "3103"]
[Result "1/2-1/2"]
[Round "9"]
[TimeControl "180+1"]
[Date "2023.08.01"]
[WhiteClock "0:00:03"]
[BlackClock "0:00:14"]
[Board "1"]

1. e4 {[%clk 0:03:00]}  e5 {[%clk 0:02:59]} 2. Nf3 {[%clk 0:03:01]}  Nc6 {[%clk 0:02:59]} 3. Bb5 {[%clk 0:03:00]}  a6 {[%clk 0:03:00]} 4. Ba4 {[%clk 0:03:00]}  Nf6 {[%clk 0:03:01]} 5. O-O {[%clk 0:03:00]}  Be7 {[%clk 0:03:01]} 6. Re1 {[%clk 0:03:01]}  b5 {[%clk 0:03:01]} 7. Bb3 {[%clk 0:03:02]}  d6 {[%clk 0:03:02]} 8. c3 {[%clk 0:03:02]}  O-O {[%clk 0:03:02]} 9. h3 {[%clk 0:03:02]}  Re8 {[%clk 0:02:58]} 10. Ng5 {[%clk 0:03:02]}  Rf8 {[%clk 0:02:58]} 11. Nf3 {[%clk 0:03:03]}  Be6 {[%clk 0:02:58]} 12. d4 {[%clk 0:02:47]}  Bxb3 {[%clk 0:02:58]} 13. Qxb3 {[%clk 0:02:48]}  Re8 {[%clk 0:02:53]} 14. d5 {[%clk 0:02:37]}  Na5 {[%clk 0:02:52]} 15. Qc2 {[%clk 0:02:37]}  c6 {[%clk 0:02:41]} 16. dxc6 {[%clk 0:02:32]}  h6 {[%clk 0:02:32]} 17. a4 {[%clk 0:02:00]}  Nxc6 {[%clk 0:02:28]} 18. b4 {[%clk 0:01:52]}  d5 {[%clk 0:02:24]} 19. axb5 {[%clk 0:01:43]}  axb5 {[%clk 0:02:24]} 20. Rxa8 {[%clk 0:01:43]}  Qxa8 {[%clk 0:02:24]} 21. exd5 {[%clk 0:01:41]}  Nxd5 {[%clk 0:02:24]} 22. Nxe5 {[%clk 0:01:26]}  Bxb4 {[%clk 0:02:20]} 23. Nf3 {[%clk 0:01:17]}  Rxe1+ {[%clk 0:01:53]} 24. Nxe1 {[%clk 0:01:18]}  Nd4 {[%clk 0:01:53]} 25. Qe4 {[%clk 0:01:05]}  Qa2 {[%clk 0:01:28]} 26. cxb4 {[%clk 0:00:18]}  Ne2+ {[%clk 0:01:26]} 27. Kh2 {[%clk 0:00:09]}  Nxc1 {[%clk 0:01:26]} 28. Qe8+ {[%clk 0:00:09]}  Kh7 {[%clk 0:01:26]} 29. Qxf7 {[%clk 0:00:10]}  Ne2 {[%clk 0:00:56]} 30. Qf5+ {[%clk 0:00:07]}  Kh8 {[%clk 0:00:54]} 31. Qf8+ {[%clk 0:00:07]}  Kh7 {[%clk 0:00:54]} 32. Qf5+ {[%clk 0:00:08]}  Kg8 {[%clk 0:00:49]} 33. Qe6+ {[%clk 0:00:05]}  Kf8 {[%clk 0:00:49]} 34. Na3 {[%clk 0:00:02]}  Nef4 {[%clk 0:00:48]} 35. Qf5+ {[%clk 0:00:02]}  Kg8 {[%clk 0:00:48]} 36. Qc8+ {[%clk 0:00:01]}  Kf7 {[%clk 0:00:45]} 37. Qf5+ {[%clk 0:00:02]}  Ke8 {[%clk 0:00:41]} 38. Nxb5 {[%clk 0:00:02]}  Qxf2 {[%clk 0:00:37]} 39. Qe5+ {[%clk 0:00:01]}  Kf8 {[%clk 0:00:28]} 40. Qf5+ {[%clk 0:00:01]}  Kg8 {[%clk 0:00:13]} 41. Qc8+ {[%clk 0:00:01]}  Kh7 {[%clk 0:00:13]} 42. Qf5+ {[%clk 0:00:02]}  Kg8 {[%clk 0:00:13]} 43. Qc8+ {[%clk 0:00:02]}  Kh7 {[%clk 0:00:13]} 44. Qf5+ {[%clk 0:00:03]}  Kg8 {[%clk 0:00:14]} 1/2-1/2


[Site "https://www.chess.com"]

[Event "Titled Tuesday Blitz August 1 Late 2023"]
[White "Demidov, Mikhail"]
[Black "Pakleza, Zbigniew"]
[WhiteFideId "4197143"]
[BlackFideId "1119290"]
[WhiteElo "2941"]
[BlackElo "2800"]
[Result "1-0"]
[Round "9"]
[TimeControl "180+1"]
[Date "2023.08.01"]
[WhiteClock "0:00:34"]
[BlackClock "0:00:02"]
[Board "7"]

1. Nf3 {[%clk 0:03:00]}  d5 {[%clk 0:03:00]} 2. c4 {[%clk 0:02:56]}  c6 {[%clk 0:03:00]} 3. g3 {[%clk 0:02:51]}  Nf6 {[%clk 0:03:00]} 4. Bg2 {[%clk 0:02:51]}  Bf5 {[%clk 0:03:01]} 5. Qb3 {[%clk 0:02:50]}  Qb6 {[%clk 0:03:01]} 6. cxd5 {[%clk 0:02:50]}  Qxb3 {[%clk 0:02:57]} 7. axb3 {[%clk 0:02:49]}  Nxd5 {[%clk 0:02:57]} 8. d3 {[%clk 0:02:40]}  Bg6 {[%clk 0:02:28]} 9. Na3 {[%clk 0:02:33]}  e6 {[%clk 0:02:24]} 10. Nc4 {[%clk 0:02:33]}  Nd7 {[%clk 0:02:20]} 11. Bd2 {[%clk 0:02:14]}  Bc5 {[%clk 0:01:36]} 12. O-O {[%clk 0:02:05]}  f6 {[%clk 0:01:12]} 13. Rfc1 {[%clk 0:02:03]}  Kf7 {[%clk 0:00:48]} 14. b4 {[%clk 0:01:16]}  Be7 {[%clk 0:00:23]} 15. Na5 {[%clk 0:01:01]}  Rab8 {[%clk 0:00:20]} 16. Nd4 {[%clk 0:01:00]}  Nxb4 {[%clk 0:00:11]} 17. Bxb4 {[%clk 0:00:49]}  Bxb4 {[%clk 0:00:12]} 18. Naxc6 {[%clk 0:00:50]}  bxc6 {[%clk 0:00:12]} 19. Rxa7 {[%clk 0:00:50]}  Rhd8 {[%clk 0:00:03]} 20. Nxc6 {[%clk 0:00:49]}  Be7 {[%clk 0:00:02]} 21. Nxd8+ {[%clk 0:00:38]}  Rxd8 {[%clk 0:00:02]} 22. Rcc7 {[%clk 0:00:38]}  Ke8 {[%clk 0:00:02]} 23. Rxd7 {[%clk 0:00:35]}  Rxd7 {[%clk 0:00:02]} 24. Bc6 {[%clk 0:00:35]}  Bc5 {[%clk 0:00:02]} 25. Rxd7 {[%clk 0:00:34]} 1-0


[Site "https://www.chess.com"]

[Event "Titled Tuesday Blitz August 1 Late 2023"]
[White "Bauman_Guy"]
[Black "Pranav, V"]
[BlackFideId "25060783"]
[WhiteElo "2811"]
[BlackElo "3008"]
[Result "1-0"]
[Round "9"]
[TimeControl "180+1"]
[Date "2023.08.01"]
[WhiteClock "0:00:25"]
[BlackClock "0:00:03"]
[Board "9"]

1. e4 {[%clk 0:03:00]}  e5 {[%clk 0:02:59]} 2. Nf3 {[%clk 0:03:01]}  Nc6 {[%clk 0:03:00]} 3. Bb5 {[%clk 0:03:01]}  a6 {[%clk 0:03:00]} 4. Ba4 {[%clk 0:03:02]}  Nf6 {[%clk 0:03:01]} 5. O-O {[%clk 0:03:02]}  Be7 {[%clk 0:03:01]} 6. Re1 {[%clk 0:03:03]}  b5 {[%clk 0:03:01]} 7. Bb3 {[%clk 0:03:03]}  O-O {[%clk 0:03:01]} 8. h3 {[%clk 0:03:03]}  d6 {[%clk 0:03:01]} 9. c3 {[%clk 0:03:04]}  Nb8 {[%clk 0:03:02]} 10. d4 {[%clk 0:03:03]}  Nbd7 {[%clk 0:03:02]} 11. Nbd2 {[%clk 0:03:02]}  Bb7 {[%clk 0:03:02]} 12. Bc2 {[%clk 0:03:03]}  Re8 {[%clk 0:03:03]} 13. Nf1 {[%clk 0:03:02]}  Bf8 {[%clk 0:03:04]} 14. Ng3 {[%clk 0:03:03]}  g6 {[%clk 0:03:04]} 15. Bd2 {[%clk 0:03:03]}  c6 {[%clk 0:03:02]} 16. Qc1 {[%clk 0:03:02]}  Bg7 {[%clk 0:02:56]} 17. Bh6 {[%clk 0:03:01]}  Qe7 {[%clk 0:02:56]} 18. Bxg7 {[%clk 0:02:56]}  Kxg7 {[%clk 0:02:57]} 19. Qg5 {[%clk 0:02:56]}  Kh8 {[%clk 0:02:56]} 20. a4 {[%clk 0:02:53]}  Nf8 {[%clk 0:02:55]} 21. dxe5 {[%clk 0:02:45]}  dxe5 {[%clk 0:02:53]} 22. b4 {[%clk 0:02:41]}  Rad8 {[%clk 0:02:05]} 23. axb5 {[%clk 0:02:38]}  cxb5 {[%clk 0:02:05]} 24. Red1 {[%clk 0:02:35]}  Rc8 {[%clk 0:02:04]} 25. Qe3 {[%clk 0:02:15]}  Qc7 {[%clk 0:02:00]} 26. Bb3 {[%clk 0:02:02]}  Re7 {[%clk 0:02:00]} 27. Rd3 {[%clk 0:01:59]}  Ne6 {[%clk 0:01:52]} 28. Rad1 {[%clk 0:01:51]}  Nf4 {[%clk 0:01:47]} 29. Rd6 {[%clk 0:01:48]}  Ne8 {[%clk 0:01:45]} 30. R6d2 {[%clk 0:01:46]}  Qxc3 {[%clk 0:01:23]} 31. Rd8 {[%clk 0:01:45]}  Kg7 {[%clk 0:00:59]} 32. Rxc8 {[%clk 0:01:32]}  Qxc8 {[%clk 0:00:58]} 33. Nxe5 {[%clk 0:01:25]}  Nxh3+ {[%clk 0:00:20]} 34. gxh3 {[%clk 0:01:24]}  Rxe5 {[%clk 0:00:20]} 35. Qd4 {[%clk 0:01:18]}  f6 {[%clk 0:00:20]} 36. Qd7+ {[%clk 0:01:12]}  Kh6 {[%clk 0:00:20]} 37. Qf7 {[%clk 0:01:02]}  Bc6 {[%clk 0:00:07]} 38. h4 {[%clk 0:00:49]}  Qg4 {[%clk 0:00:02]} 39. Qf8+ {[%clk 0:00:40]}  Ng7 {[%clk 0:00:03]} 40. Qxf6 {[%clk 0:00:40]}  Re6 {[%clk 0:00:02]} 41. Bxe6 {[%clk 0:00:33]}  Nxe6 {[%clk 0:00:03]} 42. Rd6 {[%clk 0:00:29]}  Nf4 {[%clk 0:00:03]} 43. Qf8# {[%clk 0:00:25]} 1-0


[Site "https://www.chess.com"]

[Event "Titled Tuesday Blitz August 1 Late 2023"]
[White "Pichot, Alan"]
[Black "only_strong_moves"]
[WhiteFideId "110973"]
[WhiteElo "2849"]
[BlackElo "2723"]
[Result "1-0"]
[Round "9"]
[TimeControl "180+1"]
[Date "2023.08.01"]
[WhiteClock "0:02:02"]
[BlackClock "0:00:05"]
[Board "14"]

1. Nf3 {[%clk 0:02:51]}  d5 {[%clk 0:02:59]} 2. c4 {[%clk 0:02:50]}  e6 {[%clk 0:02:59]} 3. g3 {[%clk 0:02:50]}  Nf6 {[%clk 0:02:59]} 4. Bg2 {[%clk 0:02:50]}  Be7 {[%clk 0:02:59]} 5. O-O {[%clk 0:02:51]}  O-O {[%clk 0:02:59]} 6. d4 {[%clk 0:02:51]}  c6 {[%clk 0:02:59]} 7. Qc2 {[%clk 0:02:51]}  b6 {[%clk 0:03:00]} 8. Nbd2 {[%clk 0:02:51]}  Na6 {[%clk 0:03:00]} 9. a3 {[%clk 0:02:51]}  c5 {[%clk 0:02:56]} 10. dxc5 {[%clk 0:02:50]}  Nxc5 {[%clk 0:02:56]} 11. b4 {[%clk 0:02:50]}  Nce4 {[%clk 0:02:50]} 12. Nxe4 {[%clk 0:02:39]}  Nxe4 {[%clk 0:02:39]} 13. cxd5 {[%clk 0:02:39]}  exd5 {[%clk 0:02:35]} 14. Bb2 {[%clk 0:02:39]}  Bf5 {[%clk 0:02:22]} 15. Qb3 {[%clk 0:02:31]}  Qd6 {[%clk 0:01:40]} 16. Rad1 {[%clk 0:02:25]}  Rfd8 {[%clk 0:01:39]} 17. Nd4 {[%clk 0:02:19]}  Bg6 {[%clk 0:01:11]} 18. h4 {[%clk 0:02:18]}  a5 {[%clk 0:00:58]} 19. h5 {[%clk 0:02:17]}  Bxh5 {[%clk 0:00:50]} 20. Nf5 {[%clk 0:02:18]}  Qe6 {[%clk 0:00:31]} 21. Nxg7 {[%clk 0:02:17]}  Qg6 {[%clk 0:00:31]} 22. Rxd5 {[%clk 0:02:08]}  Bxe2 {[%clk 0:00:17]} 23. Nf5 {[%clk 0:02:09]}  Bf6 {[%clk 0:00:10]} 24. Bxe4 {[%clk 0:02:07]}  Bxf1 {[%clk 0:00:09]} 25. Ne7+ {[%clk 0:02:04]}  Bxe7 {[%clk 0:00:09]} 26. Bxg6 {[%clk 0:02:04]}  hxg6 {[%clk 0:00:07]} 27. Rxd8+ {[%clk 0:02:02]}  Rxd8 {[%clk 0:00:05]} 28. Kxf1 {[%clk 0:02:02]} 1-0


[Site "https://www.chess.com"]

[Event "Titled Tuesday Blitz August 1 Late 2023"]
[White "Rasulov, Vugar"]
[Black "Bjelobrk, Igor"]
[WhiteFideId "13402390"]
[BlackFideId "4300726"]
[WhiteElo "2832"]
[BlackElo "2693"]
[Result "1-0"]
[Round "9"]
[TimeControl "180+1"]
[Date "2023.08.01"]
[WhiteClock "0:00:19"]
[BlackClock "0:00:10"]
[Board "16"]

1. d4 {[%clk 0:02:23]}  e6 {[%clk 0:02:58]} 2. c4 {[%clk 0:02:23]}  b6 {[%clk 0:02:57]} 3. Nf3 {[%clk 0:02:23]}  Bb7 {[%clk 0:02:50]} 4. g3 {[%clk 0:02:23]}  Bb4+ {[%clk 0:02:46]} 5. Bd2 {[%clk 0:02:22]}  Bxf3 {[%clk 0:02:39]} 6. exf3 {[%clk 0:02:22]}  Bxd2+ {[%clk 0:02:38]} 7. Qxd2 {[%clk 0:02:22]}  d5 {[%clk 0:02:35]} 8. Nc3 {[%clk 0:02:18]}  Ne7 {[%clk 0:02:34]} 9. O-O-O {[%clk 0:02:16]}  c6 {[%clk 0:02:31]} 10. f4 {[%clk 0:02:16]}  dxc4 {[%clk 0:02:22]} 11. Bxc4 {[%clk 0:02:15]}  b5 {[%clk 0:02:21]} 12. Be2 {[%clk 0:02:14]}  Nd7 {[%clk 0:02:20]} 13. Kb1 {[%clk 0:02:14]}  O-O {[%clk 0:02:17]} 14. h4 {[%clk 0:02:10]}  a5 {[%clk 0:02:16]} 15. h5 {[%clk 0:02:10]}  a4 {[%clk 0:02:16]} 16. h6 {[%clk 0:02:10]}  g6 {[%clk 0:02:16]} 17. Ne4 {[%clk 0:02:01]}  Nd5 {[%clk 0:02:12]} 18. Rc1 {[%clk 0:02:00]}  a3 {[%clk 0:02:06]} 19. b3 {[%clk 0:02:00]}  Qb6 {[%clk 0:02:02]} 20. g4 {[%clk 0:02:00]}  Rfd8 {[%clk 0:01:55]} 21. f5 {[%clk 0:01:58]}  exf5 {[%clk 0:01:46]} 22. gxf5 {[%clk 0:01:59]}  N7f6 {[%clk 0:01:39]} 23. Nc5 {[%clk 0:01:53]}  b4 {[%clk 0:01:35]} 24. fxg6 {[%clk 0:01:52]}  hxg6 {[%clk 0:01:32]} 25. Bc4 {[%clk 0:01:37]}  Kh7 {[%clk 0:01:30]} 26. Qg5 {[%clk 0:01:29]}  Rd6 {[%clk 0:01:20]} 27. Ka1 {[%clk 0:01:20]}  Re8 {[%clk 0:01:09]} 28. f3 {[%clk 0:01:09]}  Qd8 {[%clk 0:01:05]} 29. Nb7 {[%clk 0:00:47]}  Qe7 {[%clk 0:01:05]} 30. Nxd6 {[%clk 0:00:47]}  Qxd6 {[%clk 0:01:02]} 31. Qd2 {[%clk 0:00:47]}  Nc3 {[%clk 0:00:43]} 32. Rhe1 {[%clk 0:00:40]}  Rxe1 {[%clk 0:00:37]} 33. Rxe1 {[%clk 0:00:41]}  Nfd5 {[%clk 0:00:31]} 34. f4 {[%clk 0:00:34]}  Nxf4 {[%clk 0:00:23]} 35. Bxf7 {[%clk 0:00:31]}  c5 {[%clk 0:00:20]} 36. Rf1 {[%clk 0:00:22]}  g5 {[%clk 0:00:12]} 37. Qc2+ {[%clk 0:00:21]}  Kxh6 {[%clk 0:00:12]} 38. Rh1+ {[%clk 0:00:20]}  Kg7 {[%clk 0:00:13]} 39. Qh7+ {[%clk 0:00:20]}  Kf6 {[%clk 0:00:10]} 40. Rh6+ {[%clk 0:00:19]} 1-0


[Site "https://www.chess.com"]

[Event "Titled Tuesday Blitz August 1 Late 2023"]
[White "vishwa_vijeta"]
[Black "Mekhitarian, Krikor Sevag"]
[BlackFideId "2107660"]
[WhiteElo "2583"]
[BlackElo "2755"]
[Result "0-1"]
[Round "9"]
[TimeControl "180+1"]
[Date "2023.08.01"]
[WhiteClock "0:00:10"]
[BlackClock "0:00:11"]
[Board "21"]

1. e4 {[%clk 0:03:00]}  e6 {[%clk 0:03:00]} 2. d4 {[%clk 0:02:52]}  d5 {[%clk 0:03:00]} 3. Bd3 {[%clk 0:02:51]}  dxe4 {[%clk 0:02:59]} 4. Bxe4 {[%clk 0:02:52]}  Nf6 {[%clk 0:03:00]} 5. Bf3 {[%clk 0:02:53]}  Nc6 {[%clk 0:02:58]} 6. Ne2 {[%clk 0:02:50]}  e5 {[%clk 0:02:59]} 7. Bxc6+ {[%clk 0:02:49]}  bxc6 {[%clk 0:03:00]} 8. dxe5 {[%clk 0:02:49]}  Qxd1+ {[%clk 0:03:01]} 9. Kxd1 {[%clk 0:02:50]}  Ng4 {[%clk 0:03:01]} 10. Be3 {[%clk 0:02:50]}  Nxe3+ {[%clk 0:02:48]} 11. fxe3 {[%clk 0:02:51]}  c5 {[%clk 0:02:47]} 12. Nf4 {[%clk 0:02:50]}  Bb7 {[%clk 0:02:48]} 13. Ke2 {[%clk 0:02:48]}  O-O-O {[%clk 0:02:29]} 14. h4 {[%clk 0:02:31]}  Re8 {[%clk 0:02:29]} 15. Nc3 {[%clk 0:02:16]}  Rxe5 {[%clk 0:02:28]} 16. Rad1 {[%clk 0:02:15]}  Bd6 {[%clk 0:02:28]} 17. Nb5 {[%clk 0:02:14]}  Ba6 {[%clk 0:01:11]} 18. c4 {[%clk 0:02:11]}  Bxb5 {[%clk 0:01:11]} 19. cxb5 {[%clk 0:02:12]}  Rhe8 {[%clk 0:01:12]} 20. Nd5 {[%clk 0:01:36]}  Kb7 {[%clk 0:01:11]} 21. Rh3 {[%clk 0:01:34]}  f5 {[%clk 0:01:11]} 22. Rf3 {[%clk 0:01:29]}  g6 {[%clk 0:01:11]} 23. Nf6 {[%clk 0:01:26]}  R8e7 {[%clk 0:01:09]} 24. Nd5 {[%clk 0:01:25]}  R7e6 {[%clk 0:01:04]} 25. b3 {[%clk 0:01:19]}  Re4 {[%clk 0:01:01]} 26. g3 {[%clk 0:01:12]}  a6 {[%clk 0:00:57]} 27. bxa6+ {[%clk 0:01:06]}  Kxa6 {[%clk 0:00:58]} 28. Nc3 {[%clk 0:00:52]}  R4e5 {[%clk 0:00:50]} 29. Rd5 {[%clk 0:00:50]}  Kb7 {[%clk 0:00:48]} 30. Rxe5 {[%clk 0:00:50]}  Bxe5 {[%clk 0:00:48]} 31. Kd3 {[%clk 0:00:47]}  Kc6 {[%clk 0:00:45]} 32. Ne2 {[%clk 0:00:43]}  Rd6+ {[%clk 0:00:43]} 33. Kc2 {[%clk 0:00:43]}  Kd5 {[%clk 0:00:43]} 34. Nf4+ {[%clk 0:00:33]}  Ke4 {[%clk 0:00:42]} 35. Rf1 {[%clk 0:00:34]}  Ra6 {[%clk 0:00:34]} 36. a4 {[%clk 0:00:31]}  c4 {[%clk 0:00:34]} 37. Rd1 {[%clk 0:00:26]}  Rb6 {[%clk 0:00:27]} 38. bxc4 {[%clk 0:00:23]}  Rb2+ {[%clk 0:00:28]} 39. Kc1 {[%clk 0:00:23]}  Ra2 {[%clk 0:00:28]} 40. Nd3 {[%clk 0:00:20]}  Bxg3 {[%clk 0:00:25]} 41. Nc5+ {[%clk 0:00:18]}  Kxe3 {[%clk 0:00:23]} 42. Rd3+ {[%clk 0:00:18]}  Kf2 {[%clk 0:00:20]} 43. Kb1 {[%clk 0:00:19]}  Re2 {[%clk 0:00:16]} 44. a5 {[%clk 0:00:19]}  Re5 {[%clk 0:00:13]} 45. a6 {[%clk 0:00:19]}  Rxc5 {[%clk 0:00:12]} 46. Ra3 {[%clk 0:00:17]}  Re5 {[%clk 0:00:10]} 47. a7 {[%clk 0:00:17]}  Re8 {[%clk 0:00:11]} 48. a8=Q {[%clk 0:00:17]}  Rxa8 {[%clk 0:00:11]} 49. Rxa8 {[%clk 0:00:17]}  f4 {[%clk 0:00:12]} 50. Rc8 {[%clk 0:00:12]}  f3 {[%clk 0:00:12]} 51. Rh8 {[%clk 0:00:11]}  Kg2 {[%clk 0:00:10]} 52. Rxh7 {[%clk 0:00:11]}  f2 {[%clk 0:00:11]} 53. Rf7 {[%clk 0:00:11]}  f1=Q+ {[%clk 0:00:10]} 54. Rxf1 {[%clk 0:00:10]}  Kxf1 {[%clk 0:00:11]} 0-1


[Site "https://www.chess.com"]

[Event "Titled Tuesday Blitz August 1 Late 2023"]
[White "Golubka, Petro"]
[Black "Haszon, David"]
[WhiteFideId "14114224"]
[BlackFideId "733610"]
[WhiteElo "2752"]
[BlackElo "2529"]
[Result "0-1"]
[Round "9"]
[TimeControl "180+1"]
[Date "2023.08.01"]
[WhiteClock "0:00:11"]
[BlackClock "0:01:48"]
[Board "22"]

1. e4 {[%clk 0:03:00]}  c5 {[%clk 0:03:00]} 2. b3 {[%clk 0:03:00]}  d6 {[%clk 0:02:57]} 3. Bb2 {[%clk 0:02:59]}  Nc6 {[%clk 0:02:57]} 4. f4 {[%clk 0:02:58]}  e5 {[%clk 0:02:55]} 5. Bb5 {[%clk 0:02:55]}  exf4 {[%clk 0:02:52]} 6. Nf3 {[%clk 0:02:54]}  Be7 {[%clk 0:02:50]} 7. Bxg7 {[%clk 0:02:53]}  Bf6 {[%clk 0:02:40]} 8. Bxh8 {[%clk 0:02:52]}  Bxh8 {[%clk 0:02:40]} 9. Nc3 {[%clk 0:02:41]}  Be6 {[%clk 0:02:33]} 10. Qe2 {[%clk 0:02:28]}  a6 {[%clk 0:02:29]} 11. Bxc6+ {[%clk 0:02:27]}  bxc6 {[%clk 0:02:30]} 12. O-O {[%clk 0:02:22]}  Ne7 {[%clk 0:02:27]} 13. Ng5 {[%clk 0:02:14]}  Ng6 {[%clk 0:02:26]} 14. Qh5 {[%clk 0:02:06]}  Qf6 {[%clk 0:02:14]} 15. Nxe6 {[%clk 0:01:14]}  fxe6 {[%clk 0:02:05]} 16. Qxh7 {[%clk 0:00:56]}  Bg7 {[%clk 0:01:55]} 17. e5 {[%clk 0:00:44]}  Nxe5 {[%clk 0:01:54]} 18. Ne4 {[%clk 0:00:36]}  Qe7 {[%clk 0:01:54]} 19. Nxd6+ {[%clk 0:00:22]}  Kd7 {[%clk 0:01:51]} 20. Ne4 {[%clk 0:00:11]}  Rh8 {[%clk 0:01:48]} 0-1


[Site "https://www.chess.com"]